lending/lending_fUSD_20260110
["ID","MTS","AMOUNT","RATE_DAILY","PERIOD"]
[401172845,1768013448041,-150.0,0.00017678,2]
[401172846,1768013448054,-150.0,0.00017679,2]
[401172847,1768013448067,-150.0,0.00017681,2]
[401172848,1768013448080,-150.0,0.00017681,2]
[401172849,1768013448094,-1000.0,0.00017683,2]
[401172850,1768013448108,-179.19,0.00017685,2]
[401172851,1768013448122,-150.0,0.00017689,2]
[401172852,1768013448136,-150.0,0.00017693,2]
[401172853,1768013448149,-150.0,0.00017695,2]
[401172854,1768013448163,-150.0,0.00017696,2]
[401172855,1768013448176,-500.0,0.00017699,2]
[401172856,1768013448189,-150.0,0.000177,2]
[401172857,1768013448201,-1000.0,0.000177,2]
[401172858,1768013448214,-150.0,0.00017704,2]
[401172859,1768013448233,-150.0,0.00017704,2]
[401172860,1768013448249,-1000.0,0.00017709,2]
[401172861,1768013448264,-1000.0,0.00017711,2]
[401172862,1768013448280,-150.0,0.00017711,2]
[401172863,1768013448294,-150.0,0.00017714,2]
[401172864,1768013448308,-150.0,0.00017719,2]
[401172865,1768013448336,-150.0,0.00017721,2]
[401172866,1768013448349,-150.0,0.00017723,2]
[401172867,1768013448362,-150.0,0.00017727,2]
[401172868,1768013448376,-150.0,0.0001773,2]
[401172869,1768013448389,-7554.21886386,0.0001773,2]
[401172870,1768013448402,-150.0,0.00017731,2]
[401172871,1768013448415,-150.0,0.00017733,2]
[401172872,1768013448429,-151.0,0.00017734,2]
[401172873,1768013448442,-150.0,0.00017734,2]
[401172874,1768013448456,-150.0,0.00017738,2]
[401172875,1768013448469,-182.92,0.0001774,2]
[401172876,1768013448481,-150.0,0.00017743,2]
[401172877,1768013448495,-150.0,0.00017743,2]
[401172878,1768013448512,-150.0,0.00017746,2]
[401172879,1768013448524,-150.0,0.00017749,2]
[401172880,1768013448537,-150.0,0.00017751,2]
[401172881,1768013448549,-150.0,0.00017755,2]
[401172882,1768013448561,-150.0,0.00017756,2]
[401172883,1768013448579,-150.0,0.00017756,2]
[401172884,1768013448593,-150.0,0.00017758,2]
[401172885,1768013448609,-150.0,0.00017772,2]
[401172886,1768013448623,-150.0,0.00017772,2]
[401172887,1768013448637,-150.0,0.00017775,2]
[401172888,1768013448651,-150.0,0.00017775,2]
[401172889,1768013448665,-150.0,0.00017775,2]
[401172890,1768013448678,-150.0,0.00017778,2]
[401172891,1768013448691,-150.0,0.00017778,2]
[401172892,1768013448704,-150.0,0.00017785,2]
[401172893,1768013448718,-150.0,0.00017794,2]
[401172894,1768013448731,-150.0,0.00017795,2]
[401172895,1768013448744,-150.0,0.00017795,2]
[401172896,1768013448757,-150.0,0.00017797,2]
[401172897,1768013448770,-150.0,0.000178,2]
[401172898,1768013448783,-1000.0,0.000178,2]
[401172899,1768013448795,-150.0,0.00017806,2]
[401172900,1768013448809,-150.0,0.00017807,2]
[401172901,1768013448823,-207.26988174,0.00017808,2]
[401172902,1768013448835,-500.0,0.00017808,2]
[401172903,1768013448848,-150.0,0.00017812,2]
[401172904,1768013448861,-150.0,0.00017812,2]
[401172905,1768013448874,-150.0,0.00017816,2]
[401172906,1768013448887,-150.0,0.00017818,2]
[401172907,1768013448900,-150.0,0.0001782,2]
[401172908,1768013448912,-2407.95344,0.0001782,2]
[401172909,1768013448924,-2407.95344,0.0001782,2]
[401172910,1768013448943,-21606.0,0.0001782,2]
[401172911,1768013448957,-159.35537069,0.0001782,2]
[401172912,1768013448970,-150.0,0.00017822,2]
[401172913,1768013448985,-150.0,0.00017823,2]
[401172914,1768013448999,-151.0,0.00017823,2]
[401172915,1768013449014,-2407.95345,0.0001783,2]
[401172916,1768013449028,-150.0,0.00017831,2]
[401172917,1768013449043,-150.0,0.00017834,2]
[401172918,1768013449056,-150.0,0.00017836,2]
[401172919,1768013449068,-150.0,0.00017839,2]
[401172920,1768013449082,-150.0,0.00017841,2]
[401172921,1768013449096,-150.0,0.00017844,2]
[401172922,1768013449110,-150.0,0.00017848,2]
[401172923,1768013449124,-150.0,0.0001785,2]
[401172924,1768013449137,-200.0,0.00017855,2]
[401172925,1768013449150,-2000.0,0.00017856,2]
[401172926,1768013449163,-200.0,0.00017856,2]
[401172927,1768013449176,-200.0,0.00017856,2]
[401172928,1768013449190,-150.0,0.00017857,2]
[401172929,1768013449203,-2407.95344,0.0001786,2]
[401172930,1768013449216,-150.0,0.00017862,2]
[401172931,1768013449229,-501.30688292,0.00017863,2]
[401172932,1768013449244,-150.0,0.00017863,2]
[401172933,1768013449257,-150.0,0.00017866,2]
[401172934,1768013449269,-150.0,0.00017867,2]
[401172935,1768013449283,-150.0,0.00017869,2]
[401172936,1768013449300,-150.0,0.00017871,2]
[401172937,1768013449314,-150.0,0.00017871,2]
[401172938,1768013449328,-150.0,0.00017873,2]
[401172939,1768013449341,-150.0,0.00017877,2]
[401172940,1768013449353,-2407.95344,0.0001788,2]
[401172941,1768013449367,-152.0,0.00017881,3]
[401172942,1768013449381,-150.0,0.00017886,2]
[401172943,1768013449394,-150.0,0.00017887,2]
[401172944,1768013449407,-150.0,0.00017889,2]
[401172945,1768013449419,-150.0,0.00017889,2]
[401172946,1768013449433,-150.0,0.0001789,2]
[401172947,1768013449445,-25000.0,0.00017891,3]
[401172948,1768013449457,-150.0,0.00017893,2]
[401172949,1768013449470,-150.0,0.00017898,2]
[401172950,1768013449483,-150.0,0.00017899,2]
[401172951,1768013449496,-336.3803781,0.00017899,2]
[401172952,1768013449513,-500.0,0.00017899,2]
[401172953,1768013449526,-184.89547063,0.00017899,2]
[401172954,1768013449541,-336.38037809,0.000179,2]
[401172955,1768013449553,-25000.0,0.000179,3]
[401172956,1768013449565,-331.7762129,0.000179,2]
[401172957,1768013449577,-591.38897096,0.000179,2]
[401172958,1768013449591,-6228.92016198,0.000179,3]
[401172959,1768013449603,-1299.60700132,0.000179,2]
[401172960,1768013449616,-1299.60700132,0.000179,2]
[401172961,1768013449629,-1299.60700132,0.000179,2]
[401172962,1768013449641,-1299.60700132,0.000179,2]
[401172963,1768013449654,-1299.60700132,0.000179,2]
[401172964,1768013449666,-1299.60700132,0.000179,2]
[401172965,1768013449680,-1299.60700132,0.000179,2]
[401172966,1768013449692,-1299.60700132,0.000179,2]
[401172967,1768013449708,-1299.60700132,0.000179,2]
[401172968,1768013449720,-1299.60700132,0.000179,2]
[401172969,1768013449733,-1299.60700132,0.000179,2]
[401172970,1768013449745,-1299.60700132,0.000179,2]
[401172971,1768013449758,-1299.60700132,0.000179,2]
[401172972,1768013449769,-336.38037809,0.000179,2]
[401172973,1768013449782,-19102.14113598,0.000179,2]
[401172974,1768013449795,-26503.64522397,0.000179,2]
[401172975,1768013449808,-5422.05788852,0.000179,2]
[401172976,1768013449821,-7162.0,0.000179,2]
[401172977,1768013449833,-150.0,0.00017906,2]
[401172978,1768013449846,-150.0,0.00017909,2]
[401172979,1768013449859,-150.0,0.0001791,2]
[401172980,1768013449871,-2407.95344,0.0001791,2]
[401172981,1768013449884,-151.0,0.00017911,2]
[401172982,1768013449896,-150.0,0.00017911,2]
[401172983,1768013449909,-196.96188571,0.00017916,2]
[401172984,1768013449922,-150.0,0.00017917,2]
[401172985,1768013449933,-150.0,0.00017918,2]
[401172986,1768013449945,-150.0,0.00017919,2]
[401172987,1768013449957,-1000.0,0.00017922,2]
[401172988,1768013449970,-150.0,0.00017924,2]
[401172989,1768013449982,-1000.0,0.00017924,2]
[401172990,1768013449993,-391.73,0.00017924,2]
[401172991,1768013450007,-150.0,0.00017925,2]
[401172992,1768013450019,-150.0,0.00017932,2]
[401172993,1768013450030,-1000.0,0.00017932,2]
[401172994,1768013450043,-150.0,0.00017933,2]
[401172995,1768013450056,-150.0,0.00017936,2]
[401172996,1768013450068,-150.0,0.00017939,2]
[401172997,1768013450081,-150.0,0.00017944,2]
[401172998,1768013450100,-150.0,0.00017945,2]
[401172999,1768013450116,-181.00537575,0.00017946,2]
[401173000,1768013450130,-150.0,0.00017946,2]
[401173001,1768013450144,-150.0,0.00017949,2]
[401173002,1768013450157,-1000.0,0.00017954,2]
[401173003,1768013450172,-150.0,0.00017954,2]
[401173004,1768013450185,-150.0,0.00017956,2]
[401173005,1768013450198,-150.0,0.00017959,2]
[401173006,1768013450212,-150.0,0.00017963,2]
[401173007,1768013450225,-150.0,0.00017972,2]
[401173008,1768013450238,-303.0,0.00017973,2]
[401173009,1768013450251,-500.0,0.00017973,2]
[401173010,1768013450265,-500.0,0.00017973,2]
[401173011,1768013450277,-500.0,0.00017973,2]
[401173012,1768013450290,-500.0,0.00017973,2]
[401173013,1768013450302,-500.0,0.00017973,2]
[401173014,1768013450315,-191.10319937,0.00017973,2]
[401173015,1768013450328,-500.0,0.00017973,2]
[401173016,1768013450340,-500.0,0.00017973,2]
[401173017,1768013450352,-500.0,0.00017973,2]
[401173018,1768013450365,-500.0,0.00017973,2]
[401173019,1768013450377,-500.0,0.00017973,2]
[401173020,1768013450389,-500.0,0.00017973,2]
[401173021,1768013450401,-501.2767774,0.00017973,2]
[401173022,1768013450413,-150.34167383,0.00017973,2]
[401173023,1768013450426,-500.0,0.00017973,2]
[401173024,1768013450438,-610.19552731,0.00017973,2]
[401173025,1768013450450,-500.0,0.00017973,2]
[401173026,1768013450462,-500.0,0.00017973,2]
[401173027,1768013450475,-500.0,0.00017973,2]
[401173028,1768013450486,-500.0,0.00017973,2]
[401173029,1768013450498,-500.0,0.00017973,2]
[401173030,1768013450510,-300.29995774,0.00017973,2]
[401173031,1768013450521,-433.9562915,0.00017973,2]
[401173032,1768013450534,-260.97339631,0.00017973,2]
[401173033,1768013450548,-500.0,0.00017973,2]
[401173034,1768013450560,-500.0,0.00017973,2]
[401173035,1768013450571,-500.0,0.00017973,2]
[401173036,1768013450582,-500.0,0.00017973,2]
[401173037,1768013450594,-500.0,0.00017973,2]
[401173038,1768013450605,-500.0,0.00017973,2]
[401173039,1768013451152,-588.0072514,0.00017973,2]
[401173040,1768013451181,-500.0,0.00017973,2]
[401173041,1768013451196,-500.0,0.00017973,2]
[401173042,1768013451205,-500.0,0.00017973,2]
[401173043,1768013451215,-500.0,0.00017973,2]
[401173044,1768013451224,-500.0,0.00017973,2]
[401173045,1768013451233,-500.0,0.00017973,2]
[401173046,1768013451243,-500.0,0.00017973,2]
[401173047,1768013451252,-500.0,0.00017973,2]
[401173048,1768013451261,-500.85151996,0.00017973,2]
[401173049,1768013451272,-500.0,0.00017973,2]
[401173050,1768013451282,-571.47009533,0.00017973,2]
[401173051,1768013451292,-500.0,0.00017973,2]
[401173052,1768013451303,-500.0,0.00017973,2]
[401173053,1768013451313,-500.0,0.00017973,2]
[401173054,1768013451324,-500.0,0.00017973,2]
[401173055,1768013451334,-150.0,0.00017973,2]
[401173056,1768013451344,-150.0,0.00017973,2]
[401173057,1768013451353,-150.0,0.00017973,2]
[401173058,1768013451362,-150.0,0.00017975,2]
[401173059,1768013451372,-150.0,0.00017977,2]
[401173060,1768013451383,-150.0,0.00017978,2]
[401173061,1768013451393,-150.0,0.0001798,2]
[401173062,1768013451403,-150.0,0.00017981,2]
[401173063,1768013451413,-500.0,0.00017982,2]
[401173064,1768013451422,-393.26677801,0.0001799,2]
[401173065,1768013451432,-393.26677801,0.0001799,2]
[401173066,1768013451442,-393.26677801,0.0001799,2]
[401173067,1768013451451,-500.0,0.00017998,2]
[401173068,1768013451462,-162.34338875,0.00017999,2]
[401173069,1768013451472,-482.8641698,0.00017999,2]
[401173070,1768013451482,-146438.9699979,0.00017999,2]
[401173071,1768013451491,-4247.1325251,0.00017999,2]
[401173072,1768013451501,-3547.4975212,0.00017999,2]
[401173073,1768013451511,-300.0,0.00017999,2]
[401173074,1768013451521,-30011.9149872,0.00017999,2]
[401173075,1768013451530,-9193.9000539,0.00017999,2]
[401173076,1768013451544,-300.0,0.00017999,2]
[401173077,1768013451554,-300.0,0.00017999,2]
[401173078,1768013451564,-500.0,0.00017999,2]
[401173079,1768013451573,-500.0,0.00017999,2]
[401173080,1768013451583,-500.0,0.00017999,2]
[401173081,1768013451592,-500.0,0.00017999,2]
[401173082,1768013451601,-500.0,0.00017999,2]
[401173083,1768013451615,-435.97747503,0.00017999,2]
[401173084,1768013451625,-300.0,0.00017999,2]
[401173085,1768013451635,-671.12852877,0.00017999,2]
[401173086,1768013451645,-211.71180964,0.00018,2]
[401173087,1768013451655,-174.02592696,0.00018,2]
[401173088,1768013451664,-227.98056769,0.00018,2]
[401173089,1768013451674,-168.95489245,0.00018,2]
[401173090,1768013451684,-151.30794718,0.00018,2]
[401173091,1768013451694,-249.3099586,0.00018,2]
[401173092,1768013451703,-299.10146822,0.00018,2]
[401173093,1768013451713,-213.5300961,0.00018,2]
[401173094,1768013451723,-287.19045457,0.00018,2]
[401173095,1768013451733,-195.60258078,0.00018,2]
[401173096,1768013451743,-173.03993865,0.00018,2]
[401173097,1768013451753,-160.35362265,0.00018,2]
[401173098,1768013451766,-229.26830667,0.00018,2]
[401173099,1768013451786,-197.77953272,0.00018,2]
[401173100,1768013451806,-247.12115074,0.00018,2]
[401173101,1768013451816,-216.17286301,0.00018,2]
[401173102,1768013451826,-3220435.51591679,0.00018,2]
[401173103,1768013451837,-151.0424,0.00018,2]
[401173104,1768013451847,-166141.59570629,0.00018,2]
[401173105,1768013452680,-621.0731221,0.000159,2]
[401173106,1768013452693,-621.0731221,0.000159,2]
[401173107,1768013452705,-1484.06678734,0.00017178,2]
[401173108,1768013452719,-303.31321266,0.00017178,2]
[401173109,1768013452731,-527.16772388,0.00017514,2]
[401173110,1768013452741,-6652.63053749,0.00018,2]
[401173111,1768013452753,-817.05,0.00018,2]
[401173112,1768013452766,-71635.19512026,0.00018,2]
[401173113,1768013452779,-1065.32192759,0.00018,2]
[401173114,1768013452800,-4845.07945883,0.00018,2]
[401173115,1768013452816,-2871.9693331,0.00018,2]
[401173116,1768013452829,-1585.84505156,0.00018,2]
[401173119,1768014358294,4304.53965886,0.000202,30]
[401173124,1768014631425,-500.0,0.0001455,2]
[401173125,1768014631434,-500.0,0.0001455,2]
[401173126,1768014631444,-184.0617455,0.0001455,2]
[401173127,1768014631454,-372.80741691,0.00015452,2]
[401173128,1768014631478,-127.19258309,0.00015452,2]
[401173129,1768014631488,-319.68741691,0.00015753,2]
[401173130,1768014631500,-180.31258309,0.00015753,2]
[401173131,1768014631510,-150.0,0.00015866,2]
[401173132,1768014631519,-281.75741691,0.00015869,3]
[401173133,1768014631531,-717.24258309,0.00015869,3]
[401173134,1768014631540,-1200.0,0.00015899,2]
[401173135,1768014631551,-1000.0,0.00015926,2]
[401173136,1768014631560,-285.0,0.00015941,2]
[401173137,1768014631570,-271.47653188,0.00015941,2]
[401173138,1768014631594,-28.52346812,0.00015941,2]
[401173139,1768014631604,-151.0,0.00015947,2]
[401173140,1768014631613,-151.0,0.00015947,2]
[401173141,1768014631623,-151.0,0.00015952,2]
[401173142,1768014631633,-151.0,0.00015952,2]
[401173143,1768014631643,-541.44,0.0001597,2]
[401173144,1768014631652,-502.0,0.00016055,2]
[401173145,1768014631661,-83.03653188,0.00016148,2]
[401173146,1768014631673,-67.96346812,0.00016148,2]
[401173147,1768014631682,-151.0,0.00016148,2]
[401173148,1768014631692,-151.0,0.00016148,2]
[401173150,1768014631701,-151.0,0.00016148,2]
[401173152,1768014631711,-151.0,0.00016148,2]
[401173154,1768014631720,-151.0,0.00016148,2]
[401173155,1768014631730,-151.0,0.00016148,2]
[401173156,1768014631739,-151.0,0.00016148,2]
[401173157,1768014631748,-151.0,0.00016148,2]
[401173159,1768014631758,-151.0,0.00016148,2]
[401173161,1768014631767,-151.0,0.00016148,2]
[401173162,1768014631777,-151.0,0.00016148,2]
[401173163,1768014631786,-218.14107098,0.00016158,2]
[401173164,1768014631810,-1582.25786857,0.00016158,2]
[401173165,1768014631821,-2788.62106045,0.00016158,2]
[401173166,1768014631831,-150.0,0.000162,2]
[401173167,1768014631840,-150.0,0.000162,2]
[401173168,1768014631849,-151.30794718,0.000162,2]
[401173169,1768014631859,-150.0,0.000162,2]
[401173170,1768014631868,-150.0,0.000162,2]
[401173171,1768014631877,-150.0,0.000162,2]
[401173172,1768014631887,-150.0,0.000162,2]
[401173173,1768014631896,-150.0,0.000162,2]
[401173174,1768014631906,-150.0,0.000162,2]
[401173175,1768014631916,-197.77953272,0.000162,2]
[401173176,1768014631925,-150.0,0.000162,2]
[401173177,1768014631936,-150.0,0.000162,2]
[401173178,1768014631945,-500.0,0.00016273,2]
[401173179,1768014631954,-150.0,0.00016278,2]
[401173180,1768014631963,-500.0,0.00016286,2]
[401173181,1768014631972,-150.0,0.0001629,2]
[401173182,1768014631981,-150.0,0.000163,2]
[401173183,1768014631991,-150.0,0.000163,2]
[401173184,1768014632000,-150.0,0.00016306,2]
[401173185,1768014632010,-500.0,0.00016341,2]
[401173186,1768014632020,-500.0,0.00016356,2]
[401173187,1768014632029,-150.0,0.00016357,2]
[401173188,1768014632038,-150.0,0.0001638,2]
[401173189,1768014632048,-500.0,0.00016396,2]
[401173190,1768014632057,-150.0,0.000164,2]
[401173191,1768014632067,-150.0,0.000164,2]
[401173192,1768014632077,-150.0,0.00016412,2]
[401173193,1768014632087,-150.0,0.00016435,2]
[401173194,1768014632096,-10290.07,0.00016438,2]
[401173195,1768014632106,-500.0,0.00016438,2]
[401173196,1768014632115,-500.0,0.0001645,2]
[401173197,1768014632124,-150.0,0.00016457,2]
[401173198,1768014632134,-150.0,0.0001647,2]
[401173199,1768014632143,-150.0,0.000165,2]
[401173200,1768014632152,-150.0,0.000165,2]
[401173201,1768014632161,-500.0,0.00016505,2]
[401173202,1768014632171,-150.0,0.00016513,2]
[401173203,1768014632180,-150.0,0.00016518,2]
[401173204,1768014632190,-500.0,0.0001656,2]
[401173205,1768014632199,-150.0,0.0001656,2]
[401173206,1768014632208,-150.0,0.00016591,2]
[401173207,1768014632218,-150.0,0.000166,2]
[401173208,1768014632227,-150.0,0.000166,2]
[401173209,1768014632236,-166.66,0.00016609,2]
[401173210,1768014632246,-500.0,0.00016615,2]
[401173211,1768014632255,-150.0,0.00016624,2]
[401173212,1768014632265,-150.0,0.0001665,2]
[401173213,1768014632274,-3412.78,0.00016652,2]
[401173214,1768014632283,-500.0,0.0001667,2]
[401173215,1768014632292,-150.0,0.0001667,2]
[401173216,1768014632302,-150.0,0.000167,2]
[401173217,1768014632311,-150.0,0.000167,2]
[401173218,1768014632321,-160.0,0.00016712,2]
[401173219,1768014632330,-150.0,0.00016714,2]
[401173220,1768014632339,-500.0,0.00016724,2]
[401173221,1768014632348,-150.0,0.00016729,2]
[401173222,1768014632358,-150.0,0.0001674,2]
[401173223,1768014632367,-150.0,0.00016748,2]
[401173224,1768014632376,-537.38565789,0.00016779,2]
[401173225,1768014632386,-150.0,0.000168,2]
[401173226,1768014632395,-150.0,0.000168,2]
[401173227,1768014632404,-150.0,0.000168,2]
[401173228,1768014632414,-212.0,0.00016803,2]
[401173229,1768014632423,-1000.0,0.00016821,2]
[401173230,1768014632433,-150.0,0.00016826,2]
[401173231,1768014632442,-150.0,0.0001683,2]
[401173232,1768014632452,-150.0,0.00016835,2]
[401173233,1768014632462,-150.0,0.000169,2]
[401173234,1768014632471,-150.0,0.000169,2]
[401173235,1768014632480,-150.0,0.00016904,2]
[401173236,1768014632490,-225.56,0.00016904,2]
[401173237,1768014632500,-150.0,0.00016904,2]
[401173238,1768014632510,-150.0,0.0001692,2]
[401173239,1768014632519,-150.99,0.00016922,2]
[401173240,1768014632529,-4444.31,0.00016922,2]
[401173241,1768014632538,-9999.99,0.00016922,2]
[401173242,1768014632548,-299.99,0.00016922,4]
[401173243,1768014632559,-150.0,0.00016941,2]
[401173244,1768014632568,-272.0,0.00016943,2]
[401173245,1768014632577,-150.0,0.00016971,2]
[401173246,1768014632591,-150.0,0.00016983,2]
[401173247,1768014632600,-50478.3,0.00016986,2]
[401173248,1768014632610,-150.0,0.00017,2]
[401173249,1768014632619,-150.0,0.00017,2]
[401173250,1768014632628,-250.0,0.00017,2]
[401173251,1768014632638,-150.0,0.0001701,2]
[401173252,1768014632647,-150.0,0.00017047,2]
[401173253,1768014632656,-150.0,0.00017061,2]
[401173254,1768014632665,-322.6107,0.00017099,2]
[401173255,1768014632675,-553.64373807,0.00017099,2]
[401173256,1768014632685,-628.77903219,0.00017099,2]
[401173257,1768014632695,-1000.0,0.00017099,2]
[401173258,1768014632704,-1000.0,0.00017099,2]
[401173259,1768014632713,-1000.0,0.00017099,2]
[401173260,1768014632723,-1000.0,0.00017099,2]
[401173261,1768014632734,-1000.0,0.00017099,2]
[401173262,1768014632743,-546.03496871,0.00017099,2]
[401173263,1768014632752,-250.0,0.00017099,2]
[401173264,1768014632761,-285.08125974,0.00017099,2]
[401173265,1768014632771,-500.0,0.00017099,2]
[401173266,1768014632780,-424.19615825,0.00017099,2]
[401173267,1768014632789,-150.0,0.000171,2]
[401173268,1768014632799,-150.0,0.000171,2]
[401173269,1768014632809,-150.0,0.000171,2]
[401173270,1768014632818,-150.0,0.000171,2]
[401173271,1768014632827,-324.0,0.00017121,2]
[401173272,1768014632837,-150.0,0.00017139,2]
[401173273,1768014632847,-150.0,0.00017153,2]
[401173274,1768014632856,-166.66,0.00017157,2]
[401173275,1768014632865,-326.12,0.00017178,2]
[401173276,1768014632875,-150.0,0.0001719,2]
[401173277,1768014632884,-150.0,0.000172,2]
[401173278,1768014632894,-150.0,0.000172,2]
[401173279,1768014632903,-150.0,0.00017217,2]
[401173280,1768014632916,-150.0,0.00017229,2]
[401173281,1768014632926,-167.60889231,0.0001725,2]
[401173282,1768014632935,-150.0,0.00017252,2]
[401173283,1768014632944,-1000.0,0.00017258,2]
[401173284,1768014632955,-150.0,0.00017259,2]
[401173285,1768014632964,-150.0,0.0001728,2]
[401173286,1768014632975,-150.0,0.00017296,2]
[401173287,1768014632984,-150.0,0.000173,2]
[401173288,1768014632994,-150.0,0.000173,2]
[401173289,1768014633004,-159.16121496,0.00017331,2]
[401173290,1768014633013,-5610.72566097,0.00017352,2]
[401173291,1768014633023,-150.0,0.00017365,2]
[401173292,1768014633033,-196.96188571,0.00017368,2]
[401173293,1768014633042,-150.0,0.0001737,2]
[401173294,1768014633051,-150.0,0.00017374,2]
[401173295,1768014633061,-500.0,0.00017378,2]
[401173296,1768014633070,-203.88252599,0.00017378,2]
[401173297,1768014633079,-500.0,0.00017378,2]
[401173298,1768014633088,-500.0,0.00017378,2]
[401173299,1768014633099,-500.0,0.00017378,2]
[401173300,1768014633108,-500.0,0.00017378,2]
[401173301,1768014633117,-500.0,0.00017378,2]
[401173302,1768014633127,-339.4885119,0.00017378,2]
[401173303,1768014633136,-535.0348141,0.00017378,2]
[401173304,1768014633146,-500.0,0.00017378,2]
[401173305,1768014633155,-500.0,0.00017378,2]
[401173306,1768014633165,-362.93151871,0.00017378,2]
[401173307,1768014633174,-230.9921761,0.00017378,2]
[401173308,1768014633184,-500.0,0.00017378,2]
[401173309,1768014633193,-500.0,0.00017378,2]
[401173310,1768014633203,-500.0,0.00017378,2]
[401173311,1768014633212,-500.0,0.00017378,2]
[401173312,1768014633222,-500.0,0.00017378,2]
[401173313,1768014633231,-500.0,0.00017378,2]
[401173314,1768014633241,-500.0,0.00017378,2]
[401173315,1768014633251,-500.0,0.00017378,2]
[401173316,1768014633261,-500.0,0.00017378,2]
[401173317,1768014633270,-184.89547064,0.0001738,2]
[401173318,1768014633279,-2236.8747,0.0001738,2]
[401173319,1768014633289,-8775.65970284,0.0001738,2]
[401173320,1768014633299,-150.0,0.000174,2]
[401173321,1768014633308,-150.0,0.000174,2]
[401173322,1768014633318,-150.0,0.000174,2]
[401173323,1768014633328,-251.41333846,0.00017402,2]
[401173324,1768014633338,-165.88810645,0.00017405,2]
[401173325,1768014633347,-3412.90143511,0.00017413,2]
[401173326,1768014633382,-486.87103,0.00017413,2]
[401173328,1768014637575,-433.81293254,0.0001738,2]
[401173329,1768014637585,-169.14584015,0.0001738,2]
[401173330,1768014637596,-264.66709239,0.0001738,2]
[401173331,1768014637606,-1001.34407965,0.00017413,2]
[401173332,1768014637617,-634.59901641,0.00017413,2]
[401173333,1768014637632,-75.0100998,0.00017413,2]
[401173334,1768014637642,-420.0,0.0001743,2]
[401173335,1768014637651,-3537.52305994,0.00017438,2]
[401173336,1768014637663,-5238.13664287,0.00017438,2]
[401173337,1768014637672,-150.0,0.00017452,2]
[401173338,1768014637682,-150.0,0.0001746,2]
[401173339,1768014637692,-21099.0,0.0001746,2]
[401173340,1768014637702,-707.0,0.00017468,2]
[401173341,1768014637711,-150.0,0.00017471,2]
[401173342,1768014637722,-1680.0,0.00017472,2]
[401173343,1768014637731,-5610.72566097,0.00017474,2]
[401173344,1768014637742,-162.34338875,0.00017479,2]
[401173345,1768014637752,-500.0,0.00017479,2]
[401173346,1768014637761,-500.0,0.00017479,2]
[401173347,1768014637770,-500.0,0.00017479,2]
[401173348,1768014637780,-500.0,0.00017479,2]
[401173349,1768014637789,-150.0,0.00017479,2]
[401173350,1768014637798,-179.19,0.00017479,2]
[401173351,1768014637808,-466.97,0.00017479,2]
[401173352,1768014637817,-466.97,0.00017479,2]
[401173353,1768014637826,-466.97,0.00017479,2]
[401173354,1768014637835,-466.97,0.00017479,2]
[401173355,1768014637845,-466.97,0.00017479,2]
[401173356,1768014637854,-476.86,0.00017479,2]